{"text_format":"3","workbook":"xlsx","n_sheets":4,"sheets":["Коэффициенты рейтинга","ОО повышенного уровня","СОШ","ООШ"],"not_rendered":{"defined_names":4},"read":"whole","date_system":"1900"}

{"sheet":"Коэффициенты рейтинга","index":0,"n_rows":11,"n_cols":3,"rows_kept":11}
["Коэффициенты рейтинга"]
[]
["Квып МР","Квып ОО","Кr"]
[0.65,0.63,0.81]
[]
["Руководитель исполнительного комитета Буинского муниципального района"]
[]
["Заместитель руководителя исполнительного комитета-\nначальник МКУ «Управление образования \nБуинского муниципального района»\n",null,"И.Ф.Ханбиков"]
[]
["Председатель Буинского РК профсоюза"]
["работников образования",null,"И.Р.Сабирзянова"]

{"sheet":"ОО повышенного уровня","index":1,"n_rows":8,"n_cols":37,"rows_kept":8,"merged":[[7,0,7,3]]}
["№ п/п","Краткое наименование ОО,\nс обязательным указанием района","Средний балл ЕГЭ по русскому языку (кол-во баллов) РТ- 72,57","Балл за критерий","Средний балл ЕГЭ по математике (профильный уровень) (кол-во баллов) РТ- 55,68","Балл за критерий","Средний балл ЕГЭ по предметам по выбору (кол-во баллов) РТ - 61,47","Балл за критерий","Отсутствие выпускников 11 классов, не получивших аттестат по итогам ГИА (кол-во человек)","Балл за критерий","Охват обучающихся изучением национального (нерусского) языка как родного (%)","Балл за критерий","Средняя оценка за выполнение заданий ЕРТ \n(оценка) РТ - 3,79","Балл за критерий","Количество призеров, победителей муниципального, республиканского, регионального, заключительного этапов всероссийских олимпиад","Балл за критерий","Количество призеров, победителей муниципального, республиканского, регионального, федерального этапов конкурсов, фестивалей, соревнований, чемпионатов, конференций","Балл за критерий","Доля педагогических работников до 35 лет (%)","Балл за критерий","Доля педагогических работников с высшей и первой квалификационными категориями (%)","Балл за критерий","Численность педагогических работников, получивших гранты, ставших победителями, призерами муниципальных, республиканских и федеральных конкурсов профессионального мастерства ","Балл за критерий","Динамика (наличие) правонарушений среди несовершеннолетних","Балл за критерий","Отсутствие травматизма у учащихся","Балл за критерий","Формирование положительного имиджа образовательной организации (наличие стажировочной площадки, ресурсного центра и т.д.)","Балл за критерий","Доля обучающихся, состоящих в организации ученического самоуправления, детских общественных организациях и объединениях образовательной организации","Балл за критерий","Доля обучающихся, охваченных внеурочной деятельностью (духовно-нравственная, научно-познавательная, общественно-полезная, художественно-эстетическая, спортивно-оздоровительная) по стандартам ФГОС","Балл за критерий","Вариативная часть на решение муниципального района (города)","Балл за критерий","СУММА \nбаллов по критериям (максимум - 155)"]
[1,"МБОУ \"Гимназия № 5 г.Буинска РТ\"",71.12,0,65.79,10,61.64,3,0,5,100,10,4.39,10,33,9,21,9,5.6,5,77.7,5,7,9,0,5,0,5,"ФЦПРО",9,80,10,100,10,null,24,{"$f":"SUM(D2,F2,H2,J2,L2,N2,P2,R2,T2,V2,X2,Z2,AB2,AD2,AF2,AH2,AJ2)","v":138}]
[2,"МБОУ \"Лицей - интернат (школа для одаренных детей) г. Буинска РТ\"",74.52,3,60.71,10,65.8,5,0,5,100,10,4.67,10,78,9,95,9,16.3,5,83.7,5,10,9,0,5,0,5,"«Школа – базовая площадка по предметам естественно-научного цикла»",3,80,10,100,10,null,24,{"$f":"SUM(D3,F3,H3,J3,L3,N3,P3,R3,T3,V3,X3,Z3,AB3,AD3,AF3,AH3,AJ3)","v":137}]
[3,"МБОУ \"Гимназия имени М.Вахитова города Буинска РТ\"",74.42,3,59.2,5,66.48,10,0,5,100,10,4.26,10,43,9,45,9,8.6,5,74.28,5,2,2,0,5,0,5,"Муниципальный Ресурсный центр",3,80,10,100,10,null,24,{"$f":"SUM(D4,F4,H4,J4,L4,N4,P4,R4,T4,V4,X4,Z4,AB4,AD4,AF4,AH4,AJ4)","v":130}]
[4,"МБОУ \"Средняя общеобразовательная школа № 1 с углубленным изучением отдельных предметов\" г.Буинска РТ",71.19,0,55.2,3,62.66,3,0,5,100,10,4.09,10,91,9,"международный -4 федеральный-9       региальный - 17",9,9.8,5,92.6,5," федеральный-1             региональный - 4   муниципальный -8",9,0,5,0,5,"\"Школа превосходства\" , \"Школа с опережающим введением ФГОС ОО\"",5,80,10,100,10,null,24,{"$f":"SUM(D5,F5,H5,J5,L5,N5,P5,R5,T5,V5,X5,Z5,AB5,AD5,AF5,AH5,AJ5)","v":127}]
[5,"МБОО  \"Лицей № 2 города Буинска РТ\"",71.31,0,63.44,10,57.2,0,0,5,100,10,4.33,10,55,2,420,5,12,5,88,5,12,5,0,5,0,5,"«Школа-центр компетенции», «Школа Intel в Республике Татарстан», \"Стажировочная площадка для директоров школ РТ\"",5,80,10,100,10,null,24,{"$f":"SUM(D6,F6,H6,J6,L6,N6,P6,R6,T6,V6,X6,Z6,AB6,AD6,AF6,AH6,AJ6)","v":116}]
[]
["Заместитель руководителя исполнительного комитета-\nначальник МКУ «Управление образования Буинского муниципального района»",{"$nulls":3},"И.Ф.Ханбиков"]

{"sheet":"СОШ","index":2,"n_rows":20,"n_cols":37,"rows_kept":20,"merged":[[19,0,19,3]]}
["№ п/п","Краткое наименование ОО с обязательным указанием района","Средний балл ЕГЭ по русскому языку (кол-во баллов) РТ - 72,53","Балл за критерий","Средний балл ЕГЭ по математике (профильный уровень) (кол-во баллов) РТ - 55,19","Балл за критерий","Средний балл ЕГЭ по предметам по выбору (кол-во баллов) РТ - 61,47","Балл за критерий","Отсутствие выпускников 11 классов, не получивших аттестат по итогам ГИА (кол-во человек)","Балл за критерий","Охват обучающихся изучением национального (нерусского) языка как родного (%)","Балл за критерий","Средняя оценка за выполнение заданий ЕРТ \n(оценка)  РТ - 3,79","Балл за критерий","Численность призеров, победителей муниципального, регионального, заключительного этапов всероссийских олимпиад (кол-во человек)","Балл за критерий","Количество призеров, победителей муниципального, республиканского, регионального, федерального этапов конкурсов, фестивалей, соревнований, чемпионатов, конференций","Балл за критерий","Доля педагогических работников до 35 лет (%)","Балл за критерий","Доля педагогических работников с высшей и первой квалификационными категориями (%)","Балл за критерий","Численность педагогических работников, получивших гранты, ставших победителями, призерами муниципальных, республиканских и федеральных конкурсов профессионального мастерства ","Балл за критерий","Динамика (наличие) правонарушений среди несовершеннолетних","Балл за критерий","Отсутствие травматизма у учащихся","Балл за критерий","Формирование положительного имиджа образовательной организации (наличие стажировочной площадки, ресурсного центра и т.д.)","Балл за критерий","Доля обучающихся, состоящих в организации ученического самоуправления, детских общественных организациях и объединениях образовательной организации","Балл за критерий","Доля обучающихся, охваченных внеурочной деятельностью (духовно-нравственная, научно-познавательная, общественно-полезная, художественно-эстетическая, спортивно-оздоровительная) по стандартам ФГОС","Балл за критерий","Вариативная часть на решение муниципального района (города)","Балл за критерий","СУММА \nбаллов по критериям (максимум - 155)"]
[1,"МБОУ \"СОШ им.Р.Сагдеева\"",73.38,3,54.67,0,69.8,10,0,5,100,10,4.25,10,59,9,"побед и призеры заочных  федеральных конкурсов  -  38 уч-ся; побед и призеры очных республиканских конкурсов - 44 уч-ся; побед и призеры очных региональных конкурсов - 8 уч-ся; победители и призеры муниципальных кнкурсов - 49 уч-ся; побед и призеры очных ресубликанских соревнованией - 4 уч-ся; побед и призеры очных региональных соревнований - 6 уч-ся; побед и призеры муниципальных соревнований - 11 уч-ся. всего 160",5,5.5,0,83.3,5,"Бызова М.А. победитель муниципального этапа «Учитель года» в номинации «Классный руководитель»; Рыбакова Н.Н.- победитель в Республиканских педагогических чтениях имени Мухлисы Буби; Загриев Д.З. - призер в муниципальном конкурсе Учитель года «Педагогический дебют»; Камаретдинова Г.Н. - призер муниципального конкурса мастерства учителей начальных классов (мастер-класс) «Знаем, умеем, научим»; шарафутдинова С.С. - призер муниципального этапа конкурса мастер-классов “Туган тел”; 15 учителей побед и призеры муниципальных методических конкурсов. всего - 20",5,0,5,0,5,"\"Стажировочная площадка для директоров школ РТ группы С\" \"Пилотная школа по реализации \"Юнармейского движения\"",9,80,10,100,10,"Исполнительская дисциплина (своевременная сдача отчетов, информации и т.д.)",24,{"$f":"SUM(D2,F2,H2,J2,L2,N2,P2,R2,T2,V2,X2,Z2,AB2,AD2,AF2,AH2,AJ2)","v":125}]
[2,"МБОУ \"Адав-Тулумбаевская СОШ\"",72.6,3,57.67,3,64.3,10,0,5,100,10,4.5,10,15,2,62,7,0,0,88.89,5,6,7,0,5,0,5,0,0,75,10,100,10,"Исполнительская дисциплина (своевременная сдача отчетов, информации и т.д.)",17,109]
[3,"МБОУ \"Рунгинская СОШ\"",70.67,0,64.67,10,66.62,10,0,5,100,10,3.86,3,22,2,30,5,11.1,0,72.2,5,9,5,0,5,0,5,0,0,80,10,100,10,"Исполнительская дисциплина (своевременная сдача отчетов, информации и т.д.)",17,102]
[4,"МБОУ \"Аксунская СОШ\"",66.67,0,54.33,0,62,10,0,5,100,10,4.67,10,6,2,40,5,27.7,5,83.3,5,4,2,0,5,0,5,0,0,20,10,100,10,"Исполнительская дисциплина (своевременная сдача отчетов, информации и т.д.)",10,94]
[5,"МБОУ \"Протопоповская СОШ\"",61,0,36,0,63.85,10,0,5,100,10,3.91,3,17,2,23,5,10.5,0,68.4,5,2,5,1,3,0,5,0,0,66,10,100,10,"Исполнительская дисциплина (своевременная сдача отчетов, информации и т.д.)",17,90]
[6,"МБОУ \"Киятская СОШ\"",66.5,0,33,0,60.4,0,0,5,100,10,3.89,3,7,2,"1/соревнования Россия",9,4.7,0,62.5,5,"3/призерымуниципальный этап",2,0,5,0,5,"\"Пилотная школа по реализации программ \"Российского движения школьников\" в РТ",9,96,10,100,10,"Исполнительская дисциплина (своевременная сдача отчетов, информации и т.д.)",14,89]
[7,"МБОУ \"Новотинчалинская СОШ\"",64,0,39,0,48,0,0,5,100,10,4.33,10,1,2,7,9,0,0,90.9,5,10,5,0,5,0,5,0,0,92,10,100,10,"Исполнительская дисциплина (своевременная сдача отчетов, информации и т.д.)",12,88]
[8,"МБОУ \"Ново-Чечкабская СОШ\"",54,0,50,0,50.5,0,0,5,100,10,4.57,10,3,2,22,5,5.3,0,89.4,5,1,2,0,5,0,5,0,0,90.3,10,100,10,"Исполнительская дисциплина (своевременная сдача отчетов, информации и т.д.)",19,88]
[9,"МБОУ \"Альшиховская СОШ\"",68.67,0,48.67,0,56,0,0,5,100,10,3.88,3,25,2,"50 (5 республиканских , 45 муниципальных)",5,13.6,0,90.9,5,3,5,0,5,0,5,"\"Школа лидерства\"",5,88,10,100,10,"Исполнительская дисциплина (своевременная сдача отчетов, информации и т.д.)",14,84]
[10,"МБОУ \"Альшеевская СОШ\"",65.8,0,62.67,10,54.4,0,0,5,100,10,3.79,3,6,2,7,2,9.5,0,57.1,4,4,2,0,5,0,5,0,0,90,10,100,10,"Исполнительская дисциплина (своевременная сдача отчетов, информации и т.д.)",15,83]
[11,"МБОУ \"Старостуденецкая СОШ\" ",54,0,0,0,0,0,0,5,100,10,4.1,10,6,2,15,5,10,0,70,5,5,2,0,5,0,5,0,0,100,10,100,10,"Исполнительская дисциплина (своевременная сдача отчетов, информации и т.д.)",12,81]
[12,"МБОУ \"Черки-Кильдуразовская СОШ\"",63.5,0,47.5,0,51.5,0,0,5,100,10,4,5,8,2,17,5,0,0,94.4,5,4,2,1,3,0,5,0,0,96,10,100,10,"Исполнительская дисциплина (своевременная сдача отчетов, информации и т.д.)",14,76]
[13,"МБОУ \"Бюргановская СОШ\"",65.33,0,35,0,61,0,0,5,100,10,3.54,0,5,2,37,6,3.8,0,61.5,5,10,5,1,3,0,5,0,0,72,10,100,10,"Исполнительская дисциплина (своевременная сдача отчетов, информации и т.д.)",14,75]
[14,"МБОУ \"Энтугановская СОШ\"",0,0,0,0,0,0,0,5,100,10,4,5,2,2,27,3,5.9,0,94.1,5,6,3,0,5,0,5,0,0,80,10,100,10,"Исполнительская дисциплина (своевременная сдача отчетов, информации и т.д.)",12,75]
[15,"МБОУ \"Чув.Кищаковская СОШ\"",71.33,0,42,0,55.5,0,0,5,100,10,3.73,0,6,2,"Муниципальный уровень:\nПобедителей -4\nПризеров-40\n",2,5.5,0,44.4,3,"1- грант Старший учитель\n2- МП Конкурс «ФГОС НОО в действии»- 1 место\n    Конкурс мет.разраб урока «Я работаю по ФГОС» 3место\n",5,0,5,0,5,0,0,65,10,100,10,"Исполнительская дисциплина (своевременная сдача отчетов, информации и т.д.)",12,69]
[]
[]
[]
["Заместитель руководителя исполнительного комитета-\nначальник МКУ «Управление образования Буинского муниципального района»",{"$nulls":3},"И.Ф.Ханбиков"]

{"sheet":"ООШ","index":3,"n_rows":18,"n_cols":33,"rows_kept":18,"merged":[[17,0,17,3]]}
["№ п/п","Краткое наименование ОО с обязательным указанием района","Средний балл ОГЭ по русскому языку РТ-4,1","Балл за критерий","Средний балл ОГЭ по математике РТ - 3,91","Балл за критерий","Охват обучающихся изучением национального (нерусского) языка как родного","Балл за критерий","Средняя оценка за выполнение заданий ЕРТ \n(оценка)  РТ - 3,79","Балл за критерий","Количество призеров, победителей муниципального, регионального, заключительного этапов всероссийских олимпиад (кол-во человек)","Балл за критерий","Количество призеров, победителей муниципального, регионального, федерального этапов конкурсов, фестивалей, соревнований, чемпионатов, конференций","Балл за критерий","Доля педагогических работников до 35 лет (%)","Балл за критерий","Доля педагогических работников с высшей и первой квалификационными категориями (%)","Балл за критерий","Численность педагогических работников, получивших гранты, ставших победителями, призерами муниципальных, республиканских и федеральных конкурсов профессионального мастерства от общего количества педработников","Балл за критерий","Динамика (наличие) правонарушений среди несовершеннолетних","Балл за критерий","Отсутствие травматизма у учащихся","Балл за критерий","Формирование положительного имиджа образовательной организации (наличие стажировочной площадки, ресурсного центра и т.д.)","Балл за критерий","Доля обучающихся, состоящих в организации ученического самоуправления, детских общественных организациях и объединениях образовательной организации","Балл за критерий","Доля обучающихся, охваченных внеурочной деятельностью (духовно-нравственная, научно-познавательная, общественно-полезная, художественно-эстетическая, спортивно-оздоровительная) по стандартам ФГОС","Балл за критерий","Вариативная часть на решение муниципального района (города)","Балл за критерий","СУММА \nбаллов по критериям (максимум - 125)"]
[1,"МБОУ \"Нижне - Наратбашская ООШ\"",5,10,4.83,10,100,10,4.67,10,17,4,"27 ( всероссийский этап - 3, региональный уровень - 9; муниципальный уровень - 15) ",8,0,0,91.6,5,5,5,0,5,0,5,0,0,100,10,100,10,"Исполнительская дисциплина (своевременная сдача отчетов, информации и т.д.)",10,{"$f":"SUM(D2,F2,H2,J2,L2,N2,P2,R2,T2,V2,X2,Z2,AB2,AD2,AF2)","v":102}]
[2,"МБОУ \"Верхнелащинская ООШ\"",4.43,10,4.43,10,100,10,4.57,10,5,4,20,7,0,0,81.2,5,4,2,0,5,0,5,0,0,75,10,100,10,"Исполнительская дисциплина (своевременная сдача отчетов, информации и т.д.)",10,98]
[3,"МБОУ \"Больше - Фроловская ООШ\"",4.5,10,4,5,100,10,4,5,4,4,25,8,17,0,83.3,5,4,5,0,5,0,5,0,0,100,10,100,10,"Исполнительская дисциплина (своевременная сдача отчетов, информации и т.д.)",15,97]
[4,"МБОУ \"Черки - Гришинская ООШ\"",4.4,10,4.2,10,100,10,4.33,10,5,4,"МЭ 20; РЭ -5, Ф-1",7,9.09,0,100,5,"МЭ - 5 призер и победитель",2,0,5,0,5,0,0,100,10,100,10,"Исполнительская дисциплина (своевременная сдача отчетов, информации и т.д.)",8,96]
[5,"МБОУ \"Алькеевская ООШ\"",4.25,5,4.5,10,100,10,4.5,10,2,4,21,7,10,0,70,5,3,2,0,5,0,5,0,0,88.46,10,100,10,"Исполнительская дисциплина (своевременная сдача отчетов, информации и т.д.)",8,91]
[6,"МБОУ  \"Бик - Утеевская ООШ\"",3.71,0,4.29,10,100,10,4.14,10,1,4,21,7,16.6,0,91.6,5,1,5,0,5,0,5,0,0,100,10,100,10,"Исполнительская дисциплина (своевременная сдача отчетов, информации и т.д.)",8,89]
[7,"МБОУ \"Мещеряковская ООШ\"",4.14,0,4.14,5,100,10,4.71,10,2,4,18,7,24,5,77.7,5,0,0,0,5,0,5,0,0,100,10,100,10,"Исполнительская дисциплина (своевременная сдача отчетов, информации и т.д.)",8,84]
[8,"МБОУ \"Старотинчалинская ООШ\"",3.78,0,4.22,10,100,10,4.56,10,6,4,"муниципальный-15, региональный-6",7,23,0,84.6,5,0,0,0,5,0,5,0,0,100,10,100,10,"Исполнительская дисциплина (своевременная сдача отчетов, информации и т.д.)",8,84]
[9,"МБОУ \"Кайбицкая ООШ\"",4.07,0,3.87,0,100,10,4.44,10,10,4,"7-муниц/10-регион/3-федер",8,0,0,76.9,5,"1- респ./ 2- муниц.",5,0,5,0,5,0,0,100,10,100,10,"Исполнительская дисциплина (своевременная сдача отчетов, информации и т.д.)",9,81]
[10,"МБОУ \"Кошки-Теняковская ООШ\"",4,0,3.4,0,100,10,4,5,3,4,62,8,13,0,62.5,5,6,8,0,5,0,5,0,0,100,10,100,10,"Исполнительская дисциплина (своевременная сдача отчетов, информации и т.д.)",8,78]
[11,"МБОУ \"Сорок - Сайдаковская ООШ\"",4,0,4,5,100,10,4.6,10,1,4,17,4,0,0,81.8,5,3,2,0,5,0,5,0,0,100,10,100,10,"Исполнительская дисциплина (своевременная сдача отчетов, информации и т.д.)",8,78]
[12,"МБОУ \"Камбродская ООШ\"",3.5,0,4,5,100,10,3.5,0,1,4,25,7,0,0,78.5,5,3,2,0,5,0,5,0,0,100,10,100,10,"Исполнительская дисциплина (своевременная сдача отчетов, информации и т.д.)",10,73]
[13,"МБОУ \"Раковская ООШ\"",3.25,0,3.75,0,100,10,3.75,0,3,4,12,5,9.09,0,18.1,1,0,0,0,5,0,5,0,0,100,10,100,10,"Исполнительская дисциплина (своевременная сдача отчетов, информации и т.д.)",9,59]
[]
[]
[]
["Заместитель руководителя исполнительного комитета-\nначальник МКУ «Управление образования Буинского муниципального района»",{"$nulls":3},"И.Ф.Ханбиков"]